bitfinex/quotes_ETHUSD_20250711
["timestamp","ask_amount","ask_price","bid_price","bid_amount"]
[1752197172285,5.191,2946.8,2946.7,0.4701]
[1752197173796,5.19,2946.8,2946.7,0.4701]
[1752197174199,0.8069,2947.0,2946.7,0.4701]
[1752197174400,5.19,2946.9,2946.7,0.4701]
[1752197174725,0.4673,2946.8,2946.6,0.38118751]
[1752197175914,1.2402,2946.7,2946.6,0.38118751]
[1752197176828,6.4302,2946.7,2946.6,0.38118751]
[1752197178807,12.2847593,2946.7,2946.6,0.38118751]
[1752197179006,13.57320423,2946.7,2946.6,0.38118751]
[1752197181296,4.69644193,2946.6,2946.5,0.001]
[1752197181533,5.17134193,2946.6,2946.5,0.001]
[1752197182624,10.36134193,2946.6,2946.5,0.001]
[1752197183133,9.88644193,2946.6,2946.5,0.001]
[1752197183298,12.68801012,2946.6,2946.5,0.001]
[1752197184326,22.68801012,2946.6,2946.5,0.001]
[1752197184635,4.6983027,2946.2,2946.1,0.001]
[1752197184934,15.192862,2946.2,2946.1,0.001]
[1752197185131,12.33645623,2946.2,2946.1,0.001]
[1752197185514,17.52645623,2946.2,2946.1,0.001]
[1752197187964,7.80279423,2946.2,2946.1,0.001]
[1752197188117,5.9441,2946.2,2946.1,0.001]
[1752197188318,15.667762,2946.2,2946.1,0.001]
[1752197193344,5.9441,2946.2,2946.1,0.001]
[1752197193541,0.7541,2946.2,2946.1,0.001]
[1752197193742,5.19,2946.2,2946.1,0.001]
[1752197195073,0.55,2946.4,2946.1,0.001]
[1752197195277,5.6631072,2946.3,2946.1,0.001]
[1752197195957,3.3942027,2946.2,2946.1,0.001]
[1752197196153,5.6631072,2946.3,2946.1,0.001]
[1752197196154,9.05724259,2946.3,2946.1,0.001]
[1752197196657,5.6631072,2946.3,2946.1,0.001]
[1752197197175,0.4749,2946.2,2946.1,0.001]
[1752197197378,0.95321251,2946.2,2946.1,0.001]
[1752197198897,4.34741521,2946.2,2946.1,0.001]
[1752197199109,4.89741521,2946.2,2946.1,0.001]
[1752197199309,5.01921521,2946.2,2946.1,0.001]
[1752197199807,11.13367451,2946.2,2946.1,0.001]
[1752197202199,11.01187451,2946.2,2946.1,0.001]
[1752197202800,11.13367451,2946.2,2946.1,0.001]
[1752197204104,6.69221251,2946.2,2946.1,0.001]
[1752197205003,1.50321251,2946.2,2946.1,0.001]
[1752197205196,5.739,2946.2,2946.1,0.001]
[1752197205393,5.189,2946.2,2946.1,0.4612]
[1752197207076,5.189,2946.2,2946.1,0.001]
[1752197209206,4.20387618,2946.4,2946.1,0.001]
[1752197209410,5.189,2946.3,2946.1,0.001]
[1752197209587,0.93928762,2946.2,2946.1,0.001]
[1752197210115,5.189,2946.2,2946.1,0.001]
[1752197210872,0.8099,2946.4,2946.1,0.001]
[1752197211196,5.189,2946.3,2946.1,0.4624]
[1752197211401,5.189,2946.2,2946.1,0.4624]
[1752197212199,0.002,2946.5,2946.1,0.4624]
[1752197212374,5.189,2946.4,2946.1,0.4624]
[1752197214410,0.002,2946.5,2946.2,0.8188]
[1752197214592,5.188,2946.3,2946.2,0.8188]
[1752197214793,0.002,2946.5,2946.2,0.8188]
[1752197215192,0.002,2946.5,2946.4,0.8188]
[1752197215528,0.002,2946.5,2946.4,1.2802]
[1752197216903,3.0,2949.0,2947.1,3.39316616]
[1752197217146,3.0,2949.0,2948.4,0.8188]
[1752197217282,0.27619456,2949.1,2948.7,0.8188]
[1752197217478,0.27619456,2949.1,2948.8,11.9740686]
[1752197217712,0.27619456,2949.1,2948.8,10.4614]
[1752197217917,5.239,2949.0,2948.8,0.4614]
[1752197218086,0.57351946,2948.9,2948.8,0.4614]
[1752197218419,0.02,2948.9,2948.8,0.4614]
[1752197218734,3.38901521,2950.8,2948.9,0.8188]
[1752197219014,1.2815,2950.9,2949.5,10.0]
[1752197219015,0.02,2950.9,2949.5,10.0]
[1752197219217,5.244,2950.7,2949.6,0.8188]
[1752197219416,5.244,2950.7,2949.6,1.2802]
[1752197219594,5.244,2950.7,2949.5,10.0]
[1752197219595,5.244,2950.7,2949.7,1.2802]
[1752197220092,5.247,2950.1,2949.8,0.4614]
[1752197220415,5.251,2950.1,2949.8,0.4614]
[1752197220794,3.3890367,2950.7,2949.8,0.4614]
[1752197221009,5.251,2950.1,2949.8,0.7677681]
[1752197221397,5.251,2950.1,2949.8,0.3063681]
[1752197221602,0.8136,2950.3,2949.8,0.3063681]
[1752197221603,5.273,2949.9,2949.8,0.3063681]
[1752197221823,9.58423806,2949.9,2949.8,0.3063681]
[1752197222019,10.58213806,2949.9,2949.8,0.3063681]
[1752197222729,11.37273806,2949.9,2949.8,0.3063681]
[1752197223534,11.37273806,2949.9,2947.5,21.3345529]
[1752197223535,3.39075563,2949.2,2948.5,0.4614]
[1752197223839,0.55,2948.8,2947.8,1.216]
[1752197224134,8.64341013,2948.7,2947.8,1.216]
[1752197224337,3.39145749,2948.6,2947.8,1.216]
[1752197224915,5.252,2948.7,2947.8,1.216]
[1752197225117,3.39155987,2948.5,2947.8,1.216]
[1752197225331,0.55,2948.6,2947.8,1.216]
[1752197225332,0.39415599,2948.4,2947.8,1.216]
[1752197225518,5.255,2948.3,2947.8,1.216]
[1752197225915,6.0691,2948.3,2947.4,0.4614]
[1752197226143,5.255,2948.3,2947.4,0.4614]
[1752197226338,5.254,2948.2,2947.4,0.4614]
[1752197226543,5.254,2948.2,2947.5,0.7953]
[1752197226837,5.254,2948.2,2947.6,0.4614]
[1752197227628,5.8188156,2948.2,2947.6,0.4614]
[1752197228613,0.55,2948.1,2947.5,0.7953]
[1752197229235,3.94202676,2948.1,2947.5,0.7953]
[1752197229834,3.39225059,2947.9,2947.2,0.7953]
[1752197230009,5.255,2947.8,2947.2,0.7953]
[1752197230211,5.255,2947.8,2947.2,1.2567]
[1752197230408,5.254,2947.7,2947.3,0.4614]
[1752197230624,5.254,2947.7,2947.4,0.4614]
[1752197230827,5.254,2947.7,2947.2,0.7953]
[1752197231047,0.5648156,2948.2,2947.5,0.4614]
[1752197231233,5.254,2948.1,2947.5,0.4614]
[1752197231641,0.55,2948.1,2947.2,1.2567]
[1752197231829,0.55,2947.9,2947.2,1.2567]
[1752197232015,0.55,2947.9,2947.2,0.7953]
[1752197232215,3.39250379,2947.7,2947.2,0.7953]
[1752197232416,1.0283,2947.8,2946.9,0.76806959]
[1752197232417,9.09450583,2947.6,2946.9,0.76806959]
[1752197232617,5.7019,2947.6,2946.9,0.76806959]
[1752197232853,9.09451547,2947.6,2946.9,0.76806959]
[1752197233036,7.00863007,2947.6,2946.9,0.76806959]
[1752197233427,6.56073007,2947.6,2946.9,0.76806959]
[1752197233759,9.9533222,2947.6,2947.1,0.001]
[1752197234254,7.00863007,2947.6,2947.1,0.001]
[1752197234452,10.4012283,2947.6,2947.1,0.001]
[1752197234639,4.43286892,2947.5,2947.1,0.001]
[1752197234952,4.43283185,2947.5,2947.1,0.001]
[1752197235155,4.88073185,2947.5,2947.1,0.001]
[1752197235458,1.48802283,2947.5,2947.1,0.001]
[1752197235661,4.88078034,2947.5,2947.1,0.001]
[1752197235877,1.93131274,2947.4,2947.1,0.001]
[1752197236087,3.94305103,2947.2,2947.1,0.001]
[1752197236288,9.19305103,2947.2,2947.1,0.001]
[1752197236652,9.64095103,2947.2,2947.1,0.001]
[1752197236853,6.2479,2947.2,2947.1,0.001]
[1752197237053,7.44212888,2947.2,2947.1,0.001]
[1752197237552,10.83517991,2947.2,2947.1,0.001]
[1752197242393,6.98922888,2947.2,2947.1,0.001]
[1752197242887,6.98822888,2947.2,2947.1,0.001]
[1752197243287,1.74422888,2947.2,2947.1,0.001]
[1752197243495,5.794,2947.2,2947.1,0.001]
[1752197243690,9.18705103,2947.2,2947.1,0.001]
[1752197244112,5.794,2947.2,2947.1,0.001]
[1752197244894,10.4618,2947.9,2947.1,0.001]
[1752197245190,3.39197229,2948.2,2947.1,1.2321]
[1752197245191,1.04618,2947.8,2947.1,1.2321]
[1752197245492,5.242,2947.7,2947.1,1.2321]
[1752197246487,3.39238728,2947.8,2947.1,0.8018]
[1752197246709,5.245,2947.7,2947.2,0.4303]
[1752197247293,3.85394552,2948.0,2947.3,0.4303]
[1752197247294,3.3921493,2948.0,2947.3,0.4303]
[1752197247461,0.39421493,2947.9,2947.3,0.4303]
[1752197247660,5.248,2947.8,2947.3,0.4303]
[1752197247857,5.248,2947.8,2947.4,0.4303]
[1752197248061,5.248,2947.8,2947.5,0.4303]
[1752197249404,0.70443211,2947.7,2947.5,0.4303]
[1752197249903,5.246,2947.6,2947.5,0.4303]
[1752197250580,5.244,2947.6,2947.5,0.4303]
[1752197251206,5.244,2947.6,2947.3,0.4303]
[1752197251409,5.244,2947.6,2947.4,0.4303]
[1752197251612,5.244,2947.6,2947.5,0.4303]
[1752197252517,0.39421493,2947.9,2947.3,0.4303]
[1752197252680,5.61963937,2947.8,2947.3,0.4303]
[1752197252880,5.61963937,2947.8,2947.1,0.8018]
[1752197253101,5.61963937,2947.8,2947.2,0.4303]
[1752197254008,5.24,2947.7,2947.2,0.4303]
[1752197254390,5.24,2947.7,2947.3,0.4303]
[1752197254602,5.24,2947.7,2947.4,0.4303]
[1752197255687,0.37863937,2947.8,2947.5,0.001]
[1752197255888,5.237,2947.7,2947.5,0.001]
[1752197256407,5.236,2947.6,2947.5,0.001]
[1752197257208,3.39213305,2948.0,2947.5,0.001]
[1752197257420,5.236,2947.9,2947.5,0.001]
[1752197258221,3.85393305,2948.0,2947.5,0.001]
[1752197258510,5.235,2947.8,2947.5,0.001]
[1752197259712,3.35,2947.7,2947.5,0.001]
[1752197263043,5.23,2947.6,2947.5,0.001]
[1752197263744,9.63439058,2947.6,2947.5,0.001]
[1752197265252,6.2388,2947.6,2947.5,0.001]
[1752197265429,7.27763,2947.6,2947.5,0.001]
[1752197265629,14.02022058,2947.6,2947.5,0.001]
[1752197267523,14.82302058,2947.6,2947.5,0.001]
[1752197272361,9.59602058,2947.6,2947.5,0.001]
[1752197272569,14.81702058,2947.6,2947.5,0.001]
[1752197273157,9.59602058,2947.6,2947.5,0.001]
[1752197273363,4.38883,2947.6,2947.5,0.001]
[1752197273556,10.15983,2947.6,2947.5,0.001]
[1752197273761,13.55242058,2947.6,2947.5,0.001]
[1752197274274,10.15983,2947.6,2947.5,0.001]
[1752197274878,13.55242058,2947.6,2947.5,0.001]
[1752197275065,8.33142058,2947.6,2947.5,0.001]
[1752197275262,3.9,2947.6,2947.5,0.001]
[1752197275460,3.35,2947.6,2947.5,1.2545]
[1752197275664,8.571,2947.6,2947.5,1.2545]
[1752197280167,8.571,2947.6,2947.5,0.001]
[1752197280643,3.35,2947.6,2947.5,0.4619]
[1752197280843,8.565,2947.6,2947.5,0.4619]
[1752197284173,3.35,2947.6,2947.5,0.4619]
[1752197284366,8.562,2947.6,2947.5,0.4619]
[1752197284686,3.35,2947.6,2947.5,0.4619]
[1752197284891,8.561,2947.6,2947.5,0.4619]
[1752197285300,8.56,2947.6,2947.5,0.4619]
[1752197286262,8.559,2947.6,2947.5,0.4619]
[1752197286659,3.35,2947.6,2947.5,0.4619]
[1752197287403,8.558,2947.6,2947.5,0.4619]
[1752197289196,3.35,2947.6,2947.5,0.4619]
[1752197289462,3.39169694,2948.4,2947.5,0.4619]
[1752197289463,0.002,2948.5,2947.7,0.8128]
[1752197289685,5.211,2948.4,2948.0,0.8128]
[1752197289886,5.211,2948.4,2948.1,0.4609]
[1752197290260,5.211,2948.4,2948.2,0.4609]
[1752197290464,5.211,2948.4,2948.3,0.4609]
[1752197291108,0.002,2948.5,2948.0,1.2737]
[1752197291287,5.211,2948.4,2948.1,0.4609]
[1752197291470,5.211,2948.4,2948.2,0.4609]
[1752197291800,5.211,2948.4,2948.3,0.4609]
[1752197292731,5.209,2948.4,2948.3,0.4609]
[1752197292902,0.002,2948.5,2948.3,0.4609]
[1752197293110,5.209,2948.4,2948.3,0.4609]
[1752197293994,5.209,2948.4,2948.1,0.4609]
[1752197294195,0.4513,2948.3,2947.8,0.8224]
[1752197294421,5.7301,2948.4,2947.5,0.4619]
[1752197294422,0.4513,2948.2,2947.6,0.8224]
[1752197294619,5.212,2948.1,2947.6,0.8224]
[1752197294903,5.212,2948.1,2947.6,1.2833]
[1752197295595,5.212,2948.1,2947.7,0.4609]
[1752197296084,5.21,2948.0,2947.8,0.4609]
[1752197296346,0.8229,2948.5,2947.8,0.4609]
[1752197296347,0.002,2948.5,2947.8,0.4609]
[1752197296497,5.21,2948.4,2947.8,0.4609]
[1752197297112,5.21,2948.4,2947.9,0.7771]
[1752197297332,5.21,2948.4,2948.0,0.4609]
[1752197297633,5.21,2948.4,2947.9,0.7771]
[1752197297801,5.21,2948.4,2948.1,0.4609]
[1752197300635,5.21,2948.4,2947.9,0.7771]
[1752197300636,5.211,2948.3,2948.2,0.455]
[1752197300836,0.002,2948.5,2948.3,0.7665]
[1752197301022,5.211,2948.5,2948.3,0.7665]
[1752197301423,5.211,2948.5,2948.4,0.455]
[1752197301622,0.002,2948.5,2948.4,0.455]
[1752197314195,0.002,2948.5,2948.0,0.8257]
[1752197314492,0.002,2948.5,2948.3,0.455]
[1752197317405,0.002,2948.5,2948.0,1.2807]
[1752197317562,0.002,2948.5,2948.0,0.8257]
[1752197317890,0.002,2948.5,2947.8,1.2089]
[1752197317891,0.4503,2948.4,2947.8,1.2089]
[1752197319025,16.94448591,2948.3,2947.8,0.001]
[1752197319192,2.03361923,2948.2,2947.8,0.001]
[1752197319528,2.48391923,2948.2,2947.8,0.001]
[1752197319896,2.03361923,2948.2,2947.8,0.001]
[1752197320073,0.4503,2948.1,2947.8,0.001]
[1752197321482,0.4503,2948.0,2947.8,0.001]
[1752197321682,1.03788607,2948.0,2947.8,0.001]
[1752197321878,0.4503,2947.9,2947.8,0.001]
[1752197322681,0.4503,2948.1,2947.8,0.001]
[1752197323112,0.4503,2948.0,2947.8,0.001]
[1752197323407,0.69869192,2948.0,2947.8,0.001]
[1752197323721,10.396,2947.9,2947.8,0.001]
[1752197323932,0.7687,2948.5,2947.8,0.7609]
[1752197324081,0.7687,2948.5,2947.9,0.455]
[1752197324082,5.197,2948.4,2947.9,0.455]
[1752197324423,5.6473,2948.4,2947.9,0.455]
[1752197324628,0.4503,2948.3,2947.8,0.001]
[1752197324785,0.8302,2948.2,2947.8,0.001]
[1752197325212,0.4503,2948.1,2947.8,0.001]
[1752197325509,5.199,2948.0,2947.8,0.001]
[1752197326336,5.199,2947.9,2947.8,0.001]
[1752197327036,0.8302,2948.2,2947.8,0.456]
[1752197327240,5.199,2948.1,2947.8,0.456]
[1752197327415,5.199,2948.0,2947.8,0.8126]
[1752197327617,0.55,2948.4,2947.9,0.455]
[1752197327816,5.199,2948.3,2947.9,0.455]
[1752197330218,6.15809798,2948.2,2947.8,1.2676]
[1752197330709,0.95909798,2948.2,2947.8,1.2676]
[1752197330909,5.196,2948.1,2947.8,1.2676]
[1752197332612,5.196,2948.1,2947.8,0.8126]
[1752197333822,8.546,2948.1,2947.8,0.8126]
[1752197335155,1.2822,2948.0,2947.8,0.001]
[1752197335520,0.4537,2947.9,2947.8,0.001]
[1752197335720,1.7757239,2947.9,2947.8,0.001]
[1752197336726,9.06796922,2947.9,2947.8,0.001]
[1752197339666,8.61426922,2947.9,2947.8,0.001]
[1752197339864,9.06796922,2947.9,2947.8,0.001]
[1752197340569,14.26396922,2947.9,2947.8,0.001]
[1752197342550,9.8680239,2947.9,2947.8,0.001]
[1752197342755,8.546,2947.9,2947.8,0.001]
[1752197343984,8.9997,2947.9,2947.8,0.001]
[1752197345088,8.546,2947.9,2947.8,0.001]
[1752197347083,3.35,2947.9,2947.8,0.001]
[1752197347285,8.546,2947.9,2947.8,0.001]
[1752197348160,3.35,2947.9,2947.8,0.001]
[1752197348358,8.546,2947.9,2947.8,0.001]
[1752197348887,3.35,2947.9,2947.8,0.001]
[1752197349091,8.546,2947.9,2947.8,0.001]
[1752197349464,3.35,2947.9,2947.8,0.4447]
[1752197349681,8.546,2947.9,2947.8,0.4447]
[1752197350087,3.35,2947.9,2947.8,0.4447]
[1752197350467,8.546,2947.9,2947.8,0.4447]
[1752197352503,3.35,2947.9,2947.8,0.001]
[1752197352688,8.546,2947.9,2947.8,0.4447]
[1752197353082,3.35,2947.9,2947.8,0.4447]
[1752197353283,8.546,2947.9,2947.8,0.4447]
[1752197353668,3.35,2948.4,2947.9,0.7905]
[1752197353873,5.196,2948.3,2948.0,0.4437]
[1752197354189,5.196,2948.2,2948.0,0.4437]
[1752197354371,3.35,2948.4,2948.1,0.4437]
[1752197354573,5.196,2948.3,2947.9,0.7905]
[1752197354778,5.196,2948.3,2948.2,0.4437]
[1752197355494,3.35,2948.4,2948.2,0.4437]
[1752197355896,5.196,2948.3,2947.9,0.82442245]
[1752197356293,5.196,2948.2,2947.9,0.82442245]
[1752197356497,5.196,2948.2,2948.0,0.4437]
[1752197356803,5.196,2948.2,2947.9,0.7905]
[1752197357002,5.196,2948.2,2948.0,0.4437]
[1752197357414,5.196,2948.2,2947.9,0.7905]
[1752197357917,5.196,2948.2,2947.8,0.001]
[1752197358116,5.196,2948.2,2947.8,0.4447]
[1752197358677,5.196,2948.2,2947.8,0.001]
[1752197359521,6.63065,2948.2,2947.8,0.001]
[1752197359683,0.98095,2948.2,2947.9,0.4437]
[1752197360022,5.195,2948.1,2948.0,0.4437]
[1752197360207,5.195,2948.1,2947.8,0.001]
[1752197360411,5.195,2948.1,2947.8,0.4462]
[1752197360705,5.195,2948.1,2947.8,0.001]
[1752197361358,5.195,2948.1,2947.8,0.4462]
[1752197362444,5.195,2948.1,2947.9,0.4452]
[1752197362743,5.195,2948.0,2947.8,0.001]
[1752197363249,5.195,2948.0,2947.9,0.4452]
[1752197365244,5.195,2948.0,2947.9,0.4462]
[1752197365442,3.35,2948.4,2947.9,0.4462]
[1752197365633,5.195,2948.3,2948.0,0.8172]
[1752197365832,3.35,2948.4,2948.1,0.4452]
[1752197366028,5.195,2948.3,2948.1,0.4452]
[1752197366215,0.002,2948.5,2948.1,0.4452]
[1752197366416,0.002,2948.5,2948.2,0.4452]
[1752197366723,5.197,2948.5,2948.2,0.4452]
[1752197366921,5.197,2948.5,2948.0,0.8511213]
[1752197367244,5.197,2948.5,2948.3,0.4452]
[1752197369627,5.197,2948.5,2948.0,1.2624]
[1752197369814,0.002,2948.5,2948.1,0.4452]
[1752197370013,5.196,2948.5,2948.2,0.4452]
[1752197371250,5.196,2948.5,2948.0,0.8172]
[1752197371452,5.196,2948.5,2948.3,0.4452]
[1752197372448,5.196,2948.5,2948.1,0.4452]
[1752197372745,5.196,2948.5,2948.2,0.4452]
[1752197372947,0.002,2948.5,2948.2,0.4452]
[1752197373253,5.194,2948.4,2948.2,0.4452]
[1752197374324,5.194,2948.4,2948.0,0.8172]
[1752197374507,5.194,2948.4,2948.0,1.2624]
[1752197374711,5.6381,2948.4,2948.0,1.2624]
[1752197375655,5.6381,2948.4,2947.9,0.001]
[1752197376157,5.6381,2948.4,2947.9,0.4462]
[1752197376324,0.4441,2948.3,2947.9,0.001]
[1752197378066,3.35,2948.3,2947.9,0.001]
[1752197378222,3.35,2948.3,2947.9,0.4462]
[1752197379239,3.7941,2948.3,2947.9,0.4462]
[1752197379447,4.803611,2948.3,2947.9,0.4462]
[1752197381254,4.359511,2948.3,2947.9,0.4462]
[1752197383671,4.803611,2948.3,2947.9,0.4462]
[1752197384033,4.803611,2948.3,2947.9,0.001]
[1752197384468,4.803611,2948.3,2947.8,0.7302]
[1752197384767,4.803611,2948.3,2947.8,1.1754]
[1752197385566,4.803611,2948.3,2947.9,0.4452]
[1752197385769,4.359511,2948.3,2947.8,0.7302]
[1752197386134,4.359511,2948.3,2947.9,0.3952]
[1752197386349,4.803611,2948.3,2947.9,0.3952]
[1752197387284,4.359511,2948.3,2947.8,0.7302]
[1752197387453,3.3242,2948.3,2947.8,0.7302]
[1752197388254,3.3242,2948.3,2947.9,0.4452]
[1752197388466,3.3242,2948.3,2948.0,0.4452]
[1752197389577,3.3242,2948.3,2948.1,0.4452]
[1752197389982,5.193,2948.4,2948.1,0.4452]
[1752197390560,0.002,2948.5,2948.2,0.798]
[1752197390859,0.002,2948.5,2948.4,10.0]
[1752197391165,0.002,2948.5,2948.4,10.798]
[1752197391367,0.002,2948.5,2948.4,11.2549]
[1752197393106,0.002,2948.5,2948.4,0.798]
[1752197393397,0.002,2948.5,2948.2,0.798]
[1752197393993,0.002,2948.5,2948.2,1.2549]
[1752197395495,0.4733,2948.5,2947.9,3.78100805]
[1752197395682,0.4713,2948.4,2947.9,3.78100805]
[1752197395883,0.4713,2948.4,2947.9,1.2549]
[1752197396204,0.4713,2948.4,2947.9,11.2549]
[1752197396446,0.4713,2948.4,2947.9,0.798]
[1752197396806,0.4713,2948.4,2947.9,1.2549]
[1752197397537,0.755,2948.5,2948.0,0.4569]
[1752197397709,0.755,2948.5,2947.9,0.798]
[1752197397710,0.755,2948.5,2948.1,0.4569]
[1752197397915,0.002,2948.5,2948.2,0.4569]
[1752197400624,0.002,2948.5,2948.3,0.4569]
[1752197401551,0.002,2948.5,2947.9,11.2549]
[1752197401759,0.002,2948.5,2948.0,0.4908213]
[1752197402546,0.002,2948.5,2948.0,0.0339213]
[1752197402843,0.002,2948.5,2948.2,10.0]
[1752197403056,0.002,2948.5,2948.3,0.03391785]
[1752197403476,0.002,2948.5,2948.4,0.4569]
[1752197404111,0.002,2948.5,2948.1,10.798]
[1752197404310,0.002,2948.5,2948.2,0.4569]
[1752197405341,0.4713,2948.4,2947.9,0.4569]
[1752197405919,1.2243,2948.4,2947.9,0.4569]
[1752197407627,1.2243,2948.4,2947.8,10.798]
[1752197408348,1.2243,2948.4,2947.9,0.001]
[1752197408718,1.2243,2948.4,2947.9,0.4579]
[1752197409550,1.67735,2948.4,2947.9,0.4579]
[1752197409720,0.4713,2948.3,2947.9,0.001]
[1752197410356,1.67735,2948.4,2947.9,0.4579]
[1752197410921,1.158335,2948.3,2947.9,0.001]
[1752197411116,0.687035,2948.3,2947.9,0.001]
[1752197411424,0.4713,2948.2,2947.9,0.001]
[1752197411829,0.7899,2948.1,2947.9,0.001]
[1752197412239,9.84433025,2948.0,2947.9,0.001]
[1752197412444,14.70987187,2948.0,2947.9,0.001]
[1752197413623,15.25987187,2948.0,2947.9,0.001]
[1752197419495,25.25987187,2948.0,2947.9,0.001]
[1752197421843,21.95667187,2948.0,2947.9,0.001]
[1752197422043,27.25445778,2948.0,2947.9,0.001]
[1752197426357,30.82445778,2948.0,2947.9,0.001]
[1752197426697,27.25445778,2948.0,2947.9,0.001]
[1752197429171,4.72779058,2947.6,2947.5,0.001]
[1752197429383,15.21757649,2947.6,2947.5,0.001]
[1752197429683,15.66267649,2947.6,2947.5,0.001]
[1752197430203,4.22345103,2947.2,2947.1,0.001]
[1752197430493,15.68558204,2947.2,2947.1,0.001]
[1752197430682,16.13068204,2947.2,2947.1,0.001]
[1752197434109,4.64579613,2947.2,2947.1,0.001]
[1752197434309,8.58505103,2947.2,2947.1,0.001]
[1752197434513,9.13505103,2947.2,2947.1,0.001]
[1752197434878,8.58505103,2947.2,2947.1,0.001]
[1752197435078,14.32793694,2947.2,2947.1,0.001]
[1752197435314,18.99203694,2947.2,2947.1,0.001]
[1752197435486,31.56982635,2947.2,2947.1,0.001]
[1752197435887,4.7391813,2947.0,2946.9,0.3013907]
[1752197436086,23.23538129,2947.0,2946.9,0.3013907]
[1752197436406,3.9435116,2946.8,2946.6,0.001]
[1752197436607,17.48003589,2946.8,2946.6,0.001]
[1752197436915,17.92513589,2946.8,2946.6,0.001]
[1752197437088,17.48003589,2946.8,2946.6,0.001]
[1752197437289,17.92513589,2946.8,2946.6,0.001]
[1752197437490,12.73313589,2946.8,2946.6,0.001]
[1752197437696,17.92513589,2946.8,2946.6,0.001]
[1752197438086,3.59673838,2946.8,2946.6,0.001]
[1752197438392,3.30419999,2947.0,2946.8,0.7562]
[1752197438598,5.192,2946.9,2946.8,0.7562]
[1752197439322,5.192,2946.9,2946.8,1.2186]
[1752197439882,5.192,2946.9,2946.7,0.001]
[1752197440106,9.77446031,2946.8,2946.7,0.001]
[1752197440414,16.06734622,2946.8,2946.7,0.001]
[1752197440781,15.62224622,2946.8,2946.7,0.001]
[1752197442007,16.06734622,2946.8,2946.7,0.001]
[1752197443102,19.37154621,2946.8,2946.7,0.001]
[1752197445537,18.92644621,2946.8,2946.7,0.001]
[1752197446395,13.73444621,2946.8,2946.7,0.001]
[1752197446601,18.92644621,2946.8,2946.7,0.001]
[1752197447742,19.37154621,2946.8,2946.7,0.001]
[1752197448530,20.13024621,2946.8,2946.7,0.001]
[1752197452155,24.93824621,2946.8,2946.7,0.001]
[1752197452458,30.13024621,2946.8,2946.7,0.001]
[1752197453259,4.70935711,2946.5,2946.4,0.001]
[1752197453433,25.67007873,2946.5,2946.4,0.001]
[1752197453634,26.11957873,2946.5,2946.4,0.001]
[1752197454351,3.3942027,2946.2,2946.1,0.021]
[1752197454661,17.9516886,2946.2,2946.1,0.021]
[1752197454823,18.4011886,2946.2,2946.1,0.021]
[1752197455027,20.63570469,2946.2,2946.1,0.021]
[1752197455960,31.18570469,2946.2,2946.1,1e-08]
[1752197457793,0.7542,2946.0,2945.1,0.814]
[1752197457993,8.69267998,2945.6,2945.1,0.814]
[1752197458277,13.88467998,2945.6,2945.1,1.2756]
[1752197458585,15.61262529,2945.6,2945.2,0.4616]
[1752197459677,18.91482528,2945.6,2945.2,0.4616]
[1752197460177,18.91482528,2945.6,2945.1,0.814]
[1752197460178,19.91432528,2945.6,2945.1,0.022]
[1752197460382,20.69352528,2945.6,2945.1,0.022]
[1752197462299,14.27282528,2945.6,2945.2,0.4616]
[1752197462605,8.49519999,2945.6,2945.5,0.4626]
[1752197462902,3.39470385,2945.8,2945.6,0.7653]
[1752197463081,5.193,2945.7,2945.6,0.7653]
[1752197463676,5.193,2945.7,2945.6,1.2269]
[1752197464001,8.082302,2946.2,2945.6,1.2269]
[1752197464002,0.55,2946.1,2945.6,1.2269]
[1752197464206,1.1384502,2946.1,2945.7,0.4616]
[1752197464705,5.193,2946.0,2945.8,0.7653]
[1752197464907,4.5327815,2946.1,2945.9,0.4616]
[1752197465210,3.39443312,2946.0,2945.8,0.7653]
[1752197465510,8.58743312,2946.0,2945.8,0.7653]
[1752197465712,5.29778591,2946.6,2945.9,0.4616]
[1752197465873,3.39420656,2946.2,2945.9,0.4616]
[1752197466074,5.193,2946.1,2945.9,0.4616]
[1752197466283,8.58732621,2946.1,2945.8,0.7653]
[1752197466605,8.58732621,2946.1,2946.0,0.4616]
[1752197467789,5.192,2946.1,2946.0,0.4616]
[1752197467984,3.30219999,2946.2,2946.0,0.4616]
[1752197468175,3.30219999,2946.6,2946.1,0.7997]
[1752197468375,3.30219999,2946.6,2946.2,0.4616]
[1752197468376,8.58585965,2946.5,2946.2,0.4616]
[1752197469100,6.72016957,2946.5,2946.1,0.7997]
[1752197469303,3.3939723,2946.4,2946.1,0.7997]
[1752197469505,3.3942027,2946.2,2946.1,0.7997]
[1752197469686,3.3942027,2946.2,2945.6,0.8067]
[1752197469871,3.3942027,2946.2,2946.1,0.4616]
[1752197470196,9.79479884,2946.2,2946.1,0.4616]
[1752197471205,3.39442318,2946.1,2945.7,0.4616]
[1752197471380,5.192,2946.0,2945.8,0.4616]